[Event "26th Hit Open-A 2022"]
[Site "Nova Gorica"]
[Date "2022.09.18"]
[Round "5.17"]
[White "Marn, Jan"]
[Black "Lohia, Sohum"]
[Result "1-0"]
[ECO "E04"]
[WhiteElo "2307"]
[BlackElo "2185"]
[Annotator "ChessBase"]
[PlyCount "119"]
[EventDate "2022.09.16"]
[EventType "swiss"]
[EventCountry "SLO"]
[SourceTitle "playchess.com"]
[Source "ChessBase"]
[SourceQuality "1"]
[TimeControl "5400+30"]

1. d4 {[%emt 0:00:03]} Nf6 {[%emt 0:00:07]} 2. c4 {[%emt 0:00:05]} e6 {[%emt 0:00:07]} 3. g3 {[%emt 0:00:04]} d5 {[%emt 0:00:07]} 4. Nf3 {[%emt 0:00:04]} dxc4 {[%emt 0:00:09]} 5. Bg2 {[%emt 0:00:05]} Nc6 {[%emt 0:00:09]} 6. O-O {[%emt 0:00:12]} Rb8 {[%emt 0:00:10]} 7. e3 {[%emt 0:00:28]} b5 {[%emt 0:00:41]} 8. b3 {[%emt 0:02:00]} cxb3 {[%emt 0:01:30]} 9. axb3 {[%emt 0:00:05]} Bb7 {[%emt 0:00:30]} 10. Qe2 {[%emt 0:00:16]} a6 {[%emt 0:00:48]} 11. Rd1 {[%emt 0:02:50]} Be7 {[%emt 0:01:39]} 12. Ne5 {[%emt 0:06:34]} Nxe5 {[%emt 0:07:50]} 13. dxe5 {[%emt 0:00:38]} Nd7 {[%emt 0:00:15]} 14. Bxb7 {[%emt 0:00:11]} Rxb7 {[%emt 0:00:06]} 15. Rxa6 {[%emt 0:00:10]} O-O {[%emt 0:01:21]} 16. Bb2 {[%emt 0:04:49]} Qc8 {[%emt 0:03:39]} 17. Nd2 {[%emt 0:00:35]} Rd8 {[%emt 0:03:35]} 18. Ne4 {[%emt 0:08:24]} Nc5 {[%emt 0:02:16]} 19. Nxc5 {[%emt 0:00:07]} Bxc5 {[%emt 0:00:27]} 20. Rc6 {[%emt 0:00:09]} Be7 {[%emt 0:01:29]} 21. Rdc1 {[%emt 0:00:33]} Rd5 {[%emt 0:09:40]} 22. Bd4 {[%emt 0:03:00]} Qd7 {[%emt 0:06:16]} 23. Qa2 {[%emt 0:01:27]} Rb8 {[%emt 0:01:59]} 24. Rxc7 {[%emt 0:00:43]} Qe8 {[%emt 0:03:04]} 25. Qa7 {[%emt 0:04:01]} Bf8 {[%emt 0:00:13]} 26. Qa6 {[%emt 0:01:03]} Rd7 {[%emt 0:05:16]} 27. Rc8 {[%emt 0:25:09]} Rd8 {[%emt 0:01:00]} 28. Rxb8 {[%emt 0:04:23]} Rxb8 {[%emt 0:00:06]} 29. Rc7 {[%emt 0:00:05]} g6 {[%emt 0:03:02]} 30. Ba7 {[%emt 0:05:10]} Ra8 {[%emt 0:01:39]} 31. Qb7 {[%emt 0:00:23]} Rd8 {[%emt 0:00:41]} 32. Kg2 {[%emt 0:01:33]} Kg7 {[%emt 0:01:02]} 33. Bd4 {[%emt 0:06:23]} Kg8 {[%emt 0:00:25]} 34. Qf3 {[%emt 0:00:50]} Rc8 {[%emt 0:01:00]} 35. Ra7 {[%emt 0:01:00]} Bc5 {[%emt 0:04:05]} 36. Rb7 {[%emt 0:06:44]} Bxd4 {[%emt 0:01:31]} 37. exd4 {[%emt 0:00:07]} Rd8 {[%emt 0:01:30]} 38. Rb6 {[%emt 0:04:23]} Rxd4 {[%emt 0:01:49]} 39. Qb7 {[%emt 0:00:07]} Rd5 {[%emt 0:02:15]} 40. Qc7 {[%emt 0:02:03]} Rd8 {[%emt 0:04:58]} 41. Rxb5 {[%emt 0:02:02]} Qxb5 {[%emt 0:00:34]} 42. Qxd8+ {[%emt 0:00:05]} Kg7 {[%emt 0:00:03]} 43. Qf6+ {[%emt 0:00:04]} Kg8 {[%emt 0:00:22]} 44. Qd8+ {[%emt 0:00:07]} Kg7 {[%emt 0:00:04]} 45. Qf6+ {[%emt 0:00:03]} Kg8 {[%emt 0:00:04]} 46. Qf3 {[%emt 0:00:03]} Qxe5 {[%emt 0:00:13]} 47. Qb7 {[%emt 0:00:30]} Qf5 {[%emt 0:05:45]} 48. b4 {[%emt 0:00:49]} e5 {[%emt 0:00:28]} 49. Qa8+ {[%emt 0:01:13]} Kg7 {[%emt 0:00:08]} 50. Qd5 {[%emt 0:00:04]} h5 {[%emt 0:06:41]} 51. h4 {[%emt 0:01:54]} Qf6 {[%emt 0:10:26]} 52. b5 {[%emt 0:00:24]} Kf8 {[%emt 0:00:46]} 53. Qa8+ {[%emt 0:01:51]} Ke7 {[%emt 0:02:00]} 54. Qb7+ {[%emt 0:01:21]} Kf8 {[%emt 0:04:30]} 55. Qc8+ {[%emt 0:00:34]} Kg7 {[%emt 0:01:17]} 56. Qc6 {[%emt 0:00:07]} Qf5 {[%emt 0:01:02]} 57. b6 {[%emt 0:01:52]} Qb1 {[%emt 0:01:15]} 58. b7 {[%emt 0:00:22]} Kh6 {[%emt 0:04:43]} 59. Qc8 {[%emt 0:00:35]} Qe4+ {[%emt 0:00:24]} 60. Kh2 {[%emt 0:00:05]} 1-0

[Event "26th Hit Open-A 2022"]
[Site "Nova Gorica"]
[Date "2022.09.18"]
[Round "5.18"]
[White "Stevanic, David"]
[Black "Leitner, Gerald"]
[Result "1/2-1/2"]
[ECO "B15"]
[WhiteElo "2261"]
[BlackElo "2181"]
[Annotator "ChessBase"]
[PlyCount "63"]
[EventDate "2022.09.16"]
[EventType "swiss"]
[EventCountry "SLO"]
[SourceTitle "playchess.com"]
[Source "ChessBase"]
[SourceQuality "1"]
[TimeControl "5400+30"]

1. e4 {[%emt 0:00:12]} g6 {[%emt 0:00:03]} 2. d4 {[%emt 0:00:20]} Bg7 {[%emt 0:00:01]} 3. Nc3 {[%emt 0:00:22]} c6 {[%emt 0:00:02]} 4. f4 {[%emt 0:00:51]} d5 {[%emt 0:00:05]} 5. e5 {[%emt 0:00:18]} h5 {[%emt 0:01:06]} 6. Nf3 {[%emt 0:02:02]} Nh6 {[%emt 0:00:53]} 7. Be3 {[%emt 0:00:28]} Bg4 {[%emt 0:01:21]} 8. Be2 {[%emt 0:02:00]} Nd7 {[%emt 0:06:35]} 9. O-O {[%emt 0:03:14]} Nf8 {[%emt 0:01:42]} 10. Na4 {[%emt 0:08:22]} Nf5 {[%emt 0:02:30]} 11. Qd2 {[%emt 0:01:59]} Bxf3 {[%emt 0:13:29]} 12. Rxf3 {[%emt 0:04:28]} Ne6 {[%emt 0:01:45]} 13. Nc5 {[%emt 0:03:29]} Nxc5 {[%emt 0:00:16]} 14. dxc5 {[%emt 0:00:04]} O-O {[%emt 0:10:03]} 15. Bf2 {[%emt 0:03:51]} f6 {[%emt 0:04:27]} 16. exf6 {[%emt 0:04:26]} Bxf6 {[%emt 0:02:26]} 17. Rb3 {[%emt 0:00:45]} Qc7 {[%emt 0:00:56]} 18. g4 {[%emt 0:02:31]} hxg4 {[%emt 0:00:04]} 19. Bxg4 {[%emt 0:00:14]} Bg7 {[%emt 0:05:34]} 20. Re1 {[%emt 0:07:47]} Rae8 {[%emt 0:03:03]} 21. Re6 {[%emt 0:04:05]} Rf6 {[%emt 0:03:20]} 22. Bxf5 {[%emt 0:08:03]} gxf5 {[%emt 0:00:17]} 23. Bd4 {[%emt 0:21:15]} Rxe6 {[%emt 0:02:36]} 24. Rg3 {[%emt 0:00:15]} Rf6 {[%emt 0:25:38]} 25. Be5 {[%emt 0:00:22]} Qc8 {[%emt 0:01:30]} 26. Qg2 {[%emt 0:00:42]} Qe6 {[%emt 0:01:02]} 27. Rxg7+ {[%emt 0:00:12]} Kf8 {[%emt 0:00:51]} 28. Rg5 {[%emt 0:09:37]} Kf7 {[%emt 0:03:23]} 29. Rg7+ {[%emt 0:04:43]} Kf8 {[%emt 0:00:00]} 30. Rg5 {[%emt 0:05:29]} Kf7 {[%emt 0:00:01]} 31. Rg7+ {[%emt 0:00:08]} Kf8 {[%emt 0:00:01]} 32. Rg5 {[%emt 0:00:35]} 1/2-1/2

[Event "26th Hit Open-A 2022"]
[Site "Nova Gorica"]
[Date "2022.09.18"]
[Round "5.19"]
[White "Ronka, Erik"]
[Black "Herega, Nejc"]
[Result "1-0"]
[ECO "B90"]
[WhiteElo "2248"]
[BlackElo "2146"]
[Annotator "ChessBase"]
[PlyCount "97"]
[EventDate "2022.09.16"]
[EventType "swiss"]
[EventCountry "SLO"]
[SourceTitle "playchess.com"]
[Source "ChessBase"]
[SourceQuality "1"]
[TimeControl "5400+30"]

1. e4 {[%emt 0:00:03]} c5 {[%emt 0:03:15]} 2. Nf3 {[%emt 0:00:10]} d6 {[%emt 0:00:26]} 3. d4 {[%emt 0:00:06]} cxd4 {[%emt 0:00:04]} 4. Nxd4 {[%emt 0:00:05]} Nf6 {[%emt 0:00:06]} 5. Nc3 {[%emt 0:00:05]} a6 {[%emt 0:00:07]} 6. Be3 {[%emt 0:00:05]} e5 {[%emt 0:00:11]} 7. Nb3 {[%emt 0:00:05]} Be7 {[%emt 0:00:15]} 8. f3 {[%emt 0:00:05]} Be6 {[%emt 0:00:13]} 9. Qd2 {[%emt 0:00:07]} h5 {[%emt 0:00:09]} 10. Nd5 {[%emt 0:00:05]} Nxd5 {[%emt 0:00:14]} 11. exd5 {[%emt 0:00:06]} Bf5 {[%emt 0:00:11]} 12. Be2 {[%emt 0:00:03]} a5 {[%emt 0:00:15]} 13. a4 {[%emt 0:00:05]} Nd7 {[%emt 0:00:20]} 14. O-O {[%emt 0:00:49]} O-O {[%emt 0:00:22]} 15. f4 {[%emt 0:00:28]} exf4 {[%emt 0:00:06]} 16. Bxf4 {[%emt 0:00:05]} Rc8 {[%emt 0:00:10]} 17. c3 {[%emt 0:00:34]} Bg6 {[%emt 0:04:59]} 18. Bb5 {[%emt 0:12:24]} Ne5 {[%emt 0:09:33]} 19. Rae1 {[%emt 0:11:05]} Bf6 {[%emt 0:05:32]} 20. Qe2 {[%emt 0:13:33]} Bh4 {[%emt 0:08:04]} 21. Rd1 {[%emt 0:06:27]} Bf6 {[%emt 0:01:50]} 22. Kh1 {[%emt 0:11:21]} Rc7 {[%emt 0:08:59]} 23. h3 {[%emt 0:17:28]} Re7 {[%emt 0:06:25]} 24. Qf2 {[%emt 0:03:36]} Qc7 {[%emt 0:00:58]} 25. Rfe1 {[%emt 0:00:26]} h4 {[%emt 0:05:49]} 26. Bh2 {[%emt 0:05:10]} Bh5 {[%emt 0:06:35]} 27. Ra1 {[%emt 0:00:40]} Bg6 {[%emt 0:01:47]} 28. Qf1 {[%emt 0:00:41]} Nd7 {[%emt 0:03:02]} 29. Rxe7 {[%emt 0:01:06]} Bxe7 {[%emt 0:00:01]} 30. Re1 {[%emt 0:03:53]} Bf6 {[%emt 0:01:19]} 31. Qc4 {[%emt 0:08:56]} Qxc4 {[%emt 0:01:47]} 32. Bxc4 {[%emt 0:00:01]} Ne5 {[%emt 0:00:47]} 33. Bb5 {[%emt 0:01:43]} Ra8 {[%emt 0:05:13]} 34. Bg1 {[%emt 0:00:36]} Nd3 {[%emt 0:02:23]} 35. Re2 {[%emt 0:01:18]} Nf4 {[%emt 0:00:31]} 36. Rd2 {[%emt 0:02:45]} Be4 {[%emt 0:00:56]} 37. Bh2 {[%emt 0:01:12]} Nxh3 {[%emt 0:06:40]} 38. Bxd6 {[%emt 0:00:20]} Ng5 {[%emt 0:00:28]} 39. Nc5 {[%emt 0:01:00]} h3 {[%emt 0:01:07]} 40. Bf1 {[%emt 0:00:18]} Rd8 {[%emt 0:06:06]} 41. Bc7 {[%emt 0:00:01]} Rc8 {[%emt 0:02:01]} 42. d6 {[%emt 0:00:21]} Bc6 {[%emt 0:00:01]} 43. Bb6 {[%emt 0:00:58]} Kh7 {[%emt 0:01:10]} 44. d7 {[%emt 0:00:27]} Rd8 {[%emt 0:01:04]} 45. Bxa5 {[%emt 0:00:54]} Kg6 {[%emt 0:01:51]} 46. Bxd8 {[%emt 0:00:16]} Bxd8 {[%emt 0:00:02]} 47. b4 {[%emt 0:00:57]} f5 {[%emt 0:01:22]} 48. b5 {[%emt 0:00:47]} Be4 {[%emt 0:00:15]} 49. Ne6 {[%emt 0:00:24]} 1-0

[Event "26th Hit Open-A 2022"]
[Site "Nova Gorica"]
[Date "2022.09.18"]
[Round "5.20"]
[White "Verbin, Valentina"]
[Black "Thuesen, Mogens"]
[Result "1-0"]
[ECO "C42"]
[WhiteElo "2049"]
[BlackElo "2242"]
[Annotator "RC"]
[PlyCount "102"]
[EventDate "2022.09.16"]
[EventType "swiss"]
[EventCountry "SLO"]
[SourceTitle "playchess.com"]
[Source "ChessBase"]
[SourceQuality "1"]
[TimeControl "5400+30"]

1. e4 {[%emt 0:03:18]} e5 {[%emt 0:00:25]} 2. Nf3 {[%emt 0:00:22]} Nf6 {[%emt 0:00:09]} 3. Nxe5 {[%emt 0:00:41]} d6 {[%emt 0:00:06]} 4. Nf3 {[%emt 0:00:13]} Nxe4 {[%emt 0:00:08]} 5. d4 {[%emt 0:00:33]} d5 {[%emt 0:00:15]} 6. Bd3 {[%emt 0:00:29]} Bd6 {[%emt 0:00:32]} 7. O-O {[%emt 0:01:06]} O-O {[%emt 0:00:21]} 8. c4 {[%emt 0:00:28]} c6 {[%emt 0:00:41]} 9. Nc3 {[%emt 0:04:11]} Bf5 {[%emt 0:02:33]} 10. Qc2 {[%emt 0:02:25]} Na6 {[%emt 0:01:25]} 11. a3 {[%emt 0:01:58]} Re8 {[%emt 0:06:15]} 12. Re1 {[%emt 0:08:41]} Re6 {[%emt 0:11:15]} 13. Nxe4 {[%emt 0:16:15]} dxe4 {[%emt 0:00:11]} 14. Bxe4 {[%emt 0:00:05]} Qe7 {[%emt 0:01:12]} 15. Bg5 {[%emt 0:03:53]} Bxe4 {[%emt 0:19:43]} 16. Rxe4 {[%emt 0:08:23]} f6 {[%emt 0:00:17]} 17. Rxe6 {[%emt 0:00:10]} Qxe6 {[%emt 0:00:04]} 18. Re1 {[%emt 0:06:11]} Qf7 {[%emt 0:03:09]} 19. Bh4 {[%emt 0:02:50]} Nc7 {[%emt 0:00:27]} 20. Bg3 {[%emt 0:02:42]} Bxg3 {[%emt 0:01:28]} 21. hxg3 {[%emt 0:00:04]} Rd8 {[%emt 0:00:08]} 22. b3 {[%emt 0:01:05]} g6 {[%emt 0:02:37]} 23. Qc3 {[%emt 0:06:11]} Qf8 {[%emt 0:03:48]} 24. Qa5 {[%emt 0:01:20]} Na6 {[%emt 0:00:42]} 25. b4 {[%emt 0:04:34]} h5 {[%emt 0:06:27]} 26. b5 {[%emt 0:02:51]} cxb5 {[%emt 0:00:11]} 27. cxb5 {[%emt 0:00:04]} Rd5 {[%emt 0:00:13]} 28. Qc3 {[%emt 0:00:44]} Nb8 {[%emt 0:00:57]} 29. Qc4 {[%emt 0:04:59]} Qd8 {[%emt 0:00:35]} 30. Re8+ {[%emt 0:01:10]} Qxe8 {[%emt 0:00:07]} 31. Qxd5+ {[%emt 0:00:02]} Qf7 {[%emt 0:00:17]} 32. Qd8+ {[%emt 0:00:15]} Qf8 {[%emt 0:00:06]} 33. Qc7 {[%emt 0:00:30]} b6 {[%emt 0:04:11]} 34. d5 {[%emt 0:01:20]} Qe8 {[%emt 0:01:07]} 35. Nd4 {[%emt 0:04:30]} Nd7 {[%emt 0:04:48]} 36. Ne6 {[%emt 0:00:11]} g5 {[%emt 0:02:47]} 37. Qxa7 {[%emt 0:00:18]} f5 {[%emt 0:02:40]} 38. Qc7 {[%emt 0:00:27]} Qe7 {[%emt 0:01:45]} 39. a4 {[%emt 0:05:45]} h4 {[%emt 0:07:13]} 40. gxh4 {[%emt 0:03:13]} gxh4 {[%emt 0:00:17]} 41. a5 {[%emt 0:00:09]} bxa5 {[%emt 0:01:42]} 42. b6 {[%emt 0:00:28]} Kf7 {[%emt 0:03:16]} 43. b7 {[%emt 0:01:07]} a4 {[%emt 0:02:20]} 44. b8=Q {[%emt 0:03:46]} Nxb8 {[%emt 0:00:13]} 45. Qxb8 {[%emt 0:00:02]} a3 {[%emt 0:01:11]} 46. Qb3 {[%emt 0:01:06]} Qa7 {[%emt 0:01:27]} 47. Qc3 {[%emt 0:00:18]} Kg6 {[%emt 0:00:27]} 48. Nf4+ {[%emt 0:00:54]} Kf7 {[%emt 0:00:29]} 49. Ne6 {[%emt 0:01:13]} Kg6 {[%emt 0:00:07]} 50. Qa1 {[%emt 0:00:37]} Qe7 {[%emt 0:05:58]} 51. f4 {[%emt 0:00:19]} Qd7 {[%emt 0:01:00]} 1-0

[Event "26th Hit Open-A 2022"]
[Site "Nova Gorica"]
[Date "2022.09.18"]
[Round "5.21"]
[White "Acimovic, Vasja"]
[Black "Markocic, Tine"]
[Result "1-0"]
[ECO "D02"]
[WhiteElo "2237"]
[BlackElo "2034"]
[Annotator "TA"]
[PlyCount "59"]
[EventDate "2022.09.16"]
[EventType "swiss"]
[EventCountry "SLO"]
[SourceTitle "playchess.com"]
[Source "ChessBase"]
[SourceQuality "1"]
[TimeControl "5400+30"]

{[%evp 17,58,6,9,18,50,48,49,49,49,49,74,32,48,29,67,77,64,65,102,104,98,91,132,129,219,217,417,425,531,504,29990,29990,29991,29992,29995,29996,29996,29997,29997,29997,29998,29999,29999]} 1. d4 {[%emt 0:00:55]} Nf6 {[%emt 0:02:44]} 2. Bf4 {[%emt 0:00:41]} e6 {[%emt 0:02:59]} 3. e3 {[%emt 0:00:09]} d5 {[%emt 0:00:57]} 4. c3 {[%emt 0:00:57]} Bd6 {[%emt 0:01:40]} 5. Bg3 {[%emt 0:00:08]} O-O {[%emt 0:02:26]} 6. Nd2 {[%emt 0:00:13]} c5 {[%emt 0:01:57]} 7. Ngf3 {[%emt 0:00:17]} Nc6 {[%emt 0:00:31]} 8. Bd3 {[%emt 0:00:26]} Qe7 {[%emt 0:16:20]} 9. Ne5 {[%emt 0:02:19]} Nd7 {[%emt 0:01:35][%cal Rd6e5]} 10. Nxd7 {[%emt 0:02:41] D02: 1 d4 d5 2 Nf3 sidelines, including 2...Nf6 3 g3 and 2...Nf6 3 Bf4.} (10. f4 {seems wilder.} f5 11. O-O Nf6 12. Be2) 10... Bxd7 {[%emt 0:00:26]} 11. Bxd6 {[%emt 0:02:13]} (11. Qh5 f5 $11) 11... Qxd6 {[%emt 0:00:05]} 12. dxc5 {[%emt 0:00:07] White is slightly better.} Qe7 {[%emt 0:04:41]} 13. O-O $40 {[%emt 0:02:54][%mdl 128] White mounts an attack.} ({Reject} 13. Qh5 g6 14. Qh6 Ne5 $11) 13... a5 {[%emt 0:01:19] [#] Inhibits b4.} 14. a3 $146 {[%emt 0:01:39]} ({But not} 14. Qh5 g6 15. Qe2 Qxc5 $11) ({Predecessor:} 14. e4 Qxc5 15. Nb3 Qd6 16. exd5 exd5 17. Qh5 g6 18. Qh4 a4 19. Nd4 Ne5 20. Rad1 {0-1 (45) Ott,F (2298)-Hitzler,P (2231) Bayern 2019}) 14... a4 {[%emt 0:00:30]} 15. c4 {[%emt 0:00:40]} ({Much weaker is} 15. Qh5 f5 $11) 15... dxc4 {[%emt 0:01:30]} 16. Nxc4 {[%emt 0:01:57]} Qxc5 {[%emt 0:00:58]} 17. Rc1 {[%emt 0:00:07][%cal Od3h7]} g6 {[%emt 0:06:41] [#]} 18. Bxg6 $1 {[%emt 0:03:36][%mdl 512]} hxg6 {[%emt 0:00:04]} 19. Qxd7 {[%emt 0:00:11]} Qb5 {[%emt 0:06:10]} 20. Qc7 {[%emt 0:16:38]} Ra6 {[%emt 0:06:11] Prevents Nb6.} (20... Rad8 $16 21. h3 Rd3) 21. Rfd1 $18 {[%emt 0:07:51]} Na5 $2 {[%emt 0:03:50]} (21... Ra7 22. h3 Qc5) 22. Ne5 {[%emt 0:01:04] [#] And now Rd8 would win.} Qxb2 {[%emt 0:00:40]} 23. Rb1 {[%emt 0:06:32]} Qxa3 {[%emt 0:03:50]} (23... Qa2 $18 24. Nd7 Qc4 25. Nf6+ Kh8) 24. Rd8 {[%emt 0:00:09] White mates.} Kg7 {[%emt 0:00:16]} 25. Rd7 {[%emt 0:00:36]} Rc6 {[%emt 0:03:56]} 26. Rxf7+ {[%emt 0:00:29]} Kh6 {[%emt 0:00:07]} 27. Ng4+ {[%emt 0:00:35]} Kh5 {[%emt 0:00:25]} 28. Rh7+ {[%emt 0:01:54]} Kxg4 {[%emt 0:00:42]} 29. Qg3+ {[%emt 0:00:11]} Kf5 {[%emt 0:00:08]} 30. Qf4# {[%emt 0:00:05] Weighted Error Value: White=0.03 (flawless) /Black=0.55} 1-0

[Event "26th Hit Open-A 2022"]
[Site "Nova Gorica"]
[Date "2022.09.18"]
[Round "5.22"]
[White "Hercog, Nusa"]
[Black "Garsky, Vladyslav"]
[Result "0-1"]
[ECO "D37"]
[WhiteElo "2019"]
[BlackElo "2229"]
[Annotator "TA"]
[PlyCount "90"]
[EventDate "2022.09.16"]
[EventType "swiss"]
[EventCountry "SLO"]
[SourceTitle "playchess.com"]
[Source "ChessBase"]
[SourceQuality "1"]
[TimeControl "5400+30"]

{[%evp 17,90,12,18,-16,24,-16,-14,-18,-17,-14,-20,-37,-29,-66,-30,-22,-29,-23,0,0,0,0,0,0,0,0,0,-5,-1,-3,0,-10,0,0,0,0,0,0,0,0,0,0,0,0,0,-21,-15,-131,-117,-101,0,0,0,-31,-25,-157,-85,-81,-56,-94,0,-102,-107,-94,-158,-239,-50,-438,-412,-29985,-29985,-29985,-29986,-29985,-29986]} 1. d4 {[%emt 0:00:06]} d5 {[%emt 0:01:13]} 2. c4 {[%emt 0:00:06]} e6 {[%emt 0:00:18]} 3. Nf3 {[%emt 0:00:10]} Be7 {[%emt 0:00:35]} 4. Nc3 {[%emt 0:01:25]} Nf6 {[%emt 0:00:06]} 5. Bf4 {[%emt 0:00:31]} O-O {[%emt 0:00:10]} 6. e3 {[%emt 0:00:07]} b6 {[%emt 0:00:02]} 7. Bd3 {[%emt 0:01:06]} c5 {[%emt 0:00:22][%cal Bc7c5,Bc5c4][%mdl 32]} 8. cxd5 {[%emt 0:03:03]} Nxd5 {[%emt 0:01:19]} 9. Nxd5 {[%emt 0:07:03]} exd5 {[%emt 0:00:39]} 10. O-O {[%emt 0:05:35] D37: Queen's Gambit Declined: 5 Bf4.} Nc6 {[%emt 0:00:23]} (10... c4 $5 {[%cal Rc4d3]} 11. Bc2 Nc6 $11) 11. Ne5 {[%emt 0:01:37]} Nxe5 {[%emt 0:01:09]} 12. Bxe5 {[%emt 0:00:10] The position is equal.} c4 {[%emt 0:00:09]} 13. Bc2 {[%emt 0:00:56]} b5 {[%emt 0:00:41] [#]} 14. e4 $146 {[%emt 0:08:35]} ({Predecessor:} 14. Qh5 g6 15. Qh6 Bf6 16. f4 Qe7 17. Rae1 Bb7 18. f5 Rae8 19. Bxf6 Qxf6 20. fxg6 {0-1 (40) Pert,R (2416)-Tang,A (2538) Chess.com INT 2020}) 14... Bb7 {[%emt 0:05:48]} 15. Re1 {[%emt 0:07:02]} dxe4 {[%emt 0:02:10]} 16. Bxe4 {[%emt 0:05:00]} Bxe4 {[%emt 0:01:00]} 17. Rxe4 {[%emt 0:00:06]} f6 {[%emt 0:03:56]} 18. Bf4 {[%emt 0:02:03]} Bd6 {[%emt 0:00:25]} 19. Qf3 {[%emt 0:07:50]} Bxf4 {[%emt 0:01:43]} 20. Qxf4 {[%emt 0:00:28]} Re8 {[%emt 0:00:57]} 21. Rae1 {[%emt 0:01:26]} Qd7 {[%emt 0:01:00]} 22. h3 {[%emt 0:02:42]} Rxe4 {[%emt 0:05:05]} 23. Rxe4 $11 {[%emt 0:03:57][%mdl 4096] Endgame KQR-KQR} Kf8 {[%emt 0:05:40]} 24. Qe3 {[%emt 0:01:37]} Re8 {[%emt 0:01:11]} 25. Qa3+ {[%emt 0:00:55]} Kf7 {[%emt 0:00:09]} 26. Rxe8 {[%emt 0:01:24]} Kxe8 {[%emt 0:00:05] KQ-KQ} 27. Qc5 {[%emt 0:00:30]} Kf7 {[%emt 0:02:38]} 28. Kf1 {[%emt 0:01:40]} Ke6 {[%emt 0:01:39]} 29. a3 {[%emt 0:02:34]} a6 {[%emt 0:00:48]} 30. Kg1 {[%emt 0:03:05]} Qd6 {[%emt 0:00:34]} 31. Qc8+ {[%emt 0:01:47]} Kd5 {[%emt 0:01:00]} 32. Qg4 {[%emt 0:02:08]} (32. h4 $11 {remains equal.}) 32... Qe7 {[%emt 0:00:42]} 33. Kf1 {[%emt 0:03:08]} h5 {[%emt 0:01:36]} ({Black should try} 33... g6 $1 $17 {Hoping for ...Qe6.} 34. Qc8 Qd6) 34. Qxh5+ {[%emt 0:02:10]} Kxd4 {[%emt 0:00:07] ...Qe4 is the strong threat.} 35. Qd1+ {[%emt 0:00:29]} Kc5 {[%emt 0:00:16]} 36. Kg1 {[%emt 0:02:02]} (36. Qg4 $11) 36... Qe5 {[%emt 0:00:25]} (36... a5 $142 $1 37. Kf1 Qe4) 37. Qd2 $17 {[%emt 0:00:59]} Qd4 {[%emt 0:00:48] Active counter play!} 38. Qe2 {[%emt 0:03:25]} Qe5 {[%emt 0:01:53] Against Qe7+} 39. Qd2 {[%emt 0:00:27] [#]} a5 $1 {[%emt 0:00:07] Inhibits Qb4+.} 40. Qxa5 {[%emt 0:03:01]} Qxb2 {[%emt 0:00:10] Threatens to win with ...c3.} 41. Qa7+ {[%emt 0:02:45]} Kd5 $2 {[%emt 0:00:38]} (41... Kd6 $19 {Strongly threatening ...c3.} 42. Qxg7 Qa1+ 43. Kh2 Qe5+ 44. g3 c3) 42. Qd7+ $2 {[%emt 0:01:22][%mdl 8192] [#] This costs White the game.} (42. Kf1 $1 $15) 42... Ke4 $1 $19 {[%emt 0:01:03] White must now prevent ...c3.} 43. Qd6 {[%emt 0:10:44]} (43. Kf1 $19 c3 44. f3+ Kf4 45. Qd4+ Kg5 46. Qg4+ Kh6 47. Qh4+ Kg6 48. Qg4+ Kf7 49. Qd7+ Kg8 50. Qe8+ Kh7 51. Qh5+ Kg8 52. Qe8+ Kh7 53. Qh5+ Kg8 54. Qe8+) 43... Qa1+ {[%emt 0:00:19] Black mates.} 44. Kh2 {[%emt 0:00:10]} Qe5+ {[%emt 0:00:03]} 45. Qxe5+ {[%emt 0:00:16]} Kxe5 {[%emt 0:00:06] Weighted Error Value: White=0.50/Black=0.21 (precise)} 0-1

[Event "26th Hit Open-A 2022"]
[Site "Nova Gorica"]
[Date "2022.09.18"]
[Round "5.23"]
[White "Beliavsky, Alexander G"]
[Black "Walker, Samuel A"]
[Result "1/2-1/2"]
[ECO "B36"]
[WhiteElo "2505"]
[BlackElo "2028"]
[Annotator "ChessBase"]
[PlyCount "68"]
[EventDate "2022.09.16"]
[EventType "swiss"]
[EventCountry "SLO"]
[SourceTitle "playchess.com"]
[Source "ChessBase"]
[SourceQuality "1"]
[TimeControl "5400+30"]

1. c4 {[%emt 0:00:04]} g6 {[%emt 0:00:55]} 2. e4 {[%emt 0:01:35]} c5 {[%emt 0:00:41]} 3. Nf3 {[%emt 0:00:25]} Nc6 {[%emt 0:00:28]} 4. d4 {[%emt 0:00:05]} cxd4 {[%emt 0:00:11]} 5. Nxd4 {[%emt 0:00:19]} Nf6 {[%emt 0:00:32]} 6. Nc3 {[%emt 0:00:08]} Nxd4 {[%emt 0:00:50]} 7. Qxd4 {[%emt 0:00:31]} d6 {[%emt 0:00:08]} 8. Be3 {[%emt 0:01:54]} Bg7 {[%emt 0:00:12]} 9. Be2 {[%emt 0:01:46]} O-O {[%emt 0:00:11]} 10. Qd2 {[%emt 0:00:06]} a5 {[%emt 0:00:25]} 11. O-O {[%emt 0:00:38]} a4 {[%emt 0:00:09]} 12. Rab1 {[%emt 0:09:28]} Qa5 {[%emt 0:05:22]} 13. b4 {[%emt 0:03:03]} axb3 {[%emt 0:00:41]} 14. axb3 {[%emt 0:00:04]} Qb4 {[%emt 0:07:07]} 15. Qc2 {[%emt 0:05:00]} Be6 {[%emt 0:08:38]} 16. Bd2 {[%emt 0:01:17]} Qc5 {[%emt 0:03:01]} 17. Kh1 {[%emt 0:09:05]} Rfc8 {[%emt 0:00:52]} 18. Qd3 {[%emt 0:03:00]} Nd7 {[%emt 0:05:52]} 19. f4 {[%emt 0:06:08]} f5 {[%emt 0:00:31]} 20. Bf3 {[%emt 0:02:35]} Rab8 {[%emt 0:06:34]} 21. Rbe1 {[%emt 0:02:20]} Re8 {[%emt 0:05:55]} 22. Qe2 {[%emt 0:05:54]} Bf7 {[%emt 0:09:51]} 23. exf5 {[%emt 0:06:02]} gxf5 {[%emt 0:00:12]} 24. Nd5 {[%emt 0:02:43]} e6 {[%emt 0:01:48]} 25. Nc3 {[%emt 0:04:28]} d5 {[%emt 0:04:29]} 26. Nb5 {[%emt 0:07:26]} dxc4 {[%emt 0:07:47]} 27. Qxc4 {[%emt 0:00:50]} e5 {[%emt 0:00:09]} 28. Qxc5 {[%emt 0:00:59]} Nxc5 {[%emt 0:00:04]} 29. fxe5 {[%emt 0:01:17]} Bxe5 {[%emt 0:06:20]} 30. Rxe5 {[%emt 0:00:44]} Rxe5 {[%emt 0:00:11]} 31. Bf4 {[%emt 0:00:01]} Rbe8 {[%emt 0:04:43]} 32. Bxe5 {[%emt 0:00:33]} Rxe5 {[%emt 0:00:09]} 33. Nd6 {[%emt 0:00:35]} Bxb3 {[%emt 0:02:44]} 34. Nxb7 {[%emt 0:00:24]} Nxb7 {[%emt 0:01:43]} 1/2-1/2